fUST/lending_fUST_20250309
["ID","MTS","AMOUNT","RATE_DAILY","PERIOD"]
[355739183,1741522041761,-680.51753592,0.00033752,2]
[355739184,1741522041784,-680.51753592,0.00033752,2]
[355739185,1741522041808,-680.51753592,0.00033752,2]
[355739186,1741522041831,-680.51753592,0.00033752,2]
[355739187,1741522041856,-422.25195961,0.00033752,2]
[355739188,1741522041967,-258.26557631,0.00033752,2]
[355739189,1741522041997,-680.51753592,0.00033752,2]
[355739190,1741522042023,-680.51753592,0.00033752,2]
[355739191,1741522042047,-680.51753592,0.00033752,2]
[355739192,1741522042069,-680.51753592,0.00033752,2]
[355739193,1741522042092,-680.51753592,0.00033752,2]
[355739194,1741522042116,-680.51753592,0.00033752,2]
[355739195,1741522042229,-680.51753592,0.00033752,2]
[355739196,1741522042273,-680.51753592,0.00033752,2]
[355739197,1741522042296,-680.51753592,0.00033752,2]
[355739198,1741522042319,-680.51753592,0.00033752,2]
[355739199,1741522042342,-680.51753592,0.00033752,2]
[355739200,1741522042364,-9472.81665048,0.00033756,2]
[355739201,1741522043132,-192.30171728,0.00033756,2]
[355739202,1741522114864,500.0,0.00028,120]
[355739203,1741522150278,-288.52002812,0.00031656,2]
[355739204,1741522150300,-2208.1409427,0.00032395,2]
[355739205,1741522150324,-500.0,0.00033751,2]
[355739206,1741522150350,-500.0,0.00033751,2]
[355739207,1741522150379,-500.0,0.00033751,2]
[355739208,1741522150404,-500.0,0.00033751,2]
[355739209,1741522150428,-500.0,0.00033751,2]
[355739210,1741522150569,-500.0,0.00033751,2]
[355739211,1741522150594,-500.0,0.00033751,2]
[355739212,1741522150619,-500.0,0.00033751,2]
[355739213,1741522150644,-500.0,0.00033751,2]
[355739214,1741522150668,-500.0,0.00033751,2]
[355739215,1741522150692,-500.0,0.00033751,2]
[355739216,1741522150715,-500.0,0.00033751,2]
[355739217,1741522150738,-500.0,0.00033751,2]
[355739218,1741522150760,-500.0,0.00033751,2]
[355739219,1741522150784,-500.0,0.00033751,2]
[355739220,1741522150808,-500.0,0.00033751,2]
[355739221,1741522150830,-500.0,0.00033751,2]
[355739222,1741522150853,-500.0,0.00033751,2]
[355739223,1741522150880,-500.0,0.00033751,2]
[355739224,1741522150904,-500.0,0.00033751,2]
[355739225,1741522150928,-500.0,0.00033751,2]
[355739226,1741522150951,-500.0,0.00033751,2]
[355739227,1741522150974,-500.0,0.00033751,2]
[355739228,1741522151002,-500.0,0.00033751,2]
[355739229,1741522151027,-500.0,0.00033751,2]
[355739230,1741522151050,-500.0,0.00033751,2]
[355739231,1741522151074,-500.0,0.00033751,2]
[355739232,1741522151097,-500.0,0.00033751,2]
[355739233,1741522151122,-500.0,0.00033751,2]
[355739234,1741522151146,-500.0,0.00033751,2]
[355739235,1741522151169,-500.0,0.00033751,2]
[355739236,1741522151193,-500.0,0.00033751,2]
[355739237,1741522151219,-500.0,0.00033751,2]
[355739238,1741522151244,-500.0,0.00033751,2]
[355739239,1741522151266,-500.0,0.00033751,2]
[355739240,1741522151290,-226.20830442,0.00033751,2]
[355739241,1741522151312,-500.0,0.00033751,2]
[355739242,1741522151336,-500.0,0.00033751,2]
[355739243,1741522151362,-500.0,0.00033751,2]
[355739244,1741522151385,-500.0,0.00033751,2]
[355739245,1741522151408,-500.0,0.00033751,2]
[355739246,1741522151431,-500.0,0.00033751,2]
[355739247,1741522151455,-500.0,0.00033751,2]
[355739248,1741522151481,-500.0,0.00033751,2]
[355739249,1741522151508,-500.0,0.00033751,2]
[355739250,1741522151533,-500.0,0.00033751,2]
[355739251,1741522151556,-500.0,0.00033751,2]
[355739252,1741522151580,-500.0,0.00033751,2]
[355739253,1741522151604,-500.0,0.00033751,2]
[355739254,1741522151630,-500.0,0.00033751,2]
[355739255,1741522151653,-500.0,0.00033751,2]
[355739256,1741522151677,-500.0,0.00033751,2]
[355739257,1741522151699,-500.0,0.00033751,2]
[355739258,1741522151728,-500.0,0.00033751,2]
[355739259,1741522151752,-500.0,0.00033751,2]
[355739260,1741522151775,-500.0,0.00033751,2]
[355739261,1741522151798,-500.0,0.00033751,2]
[355739262,1741522151822,-500.0,0.00033751,2]
[355739263,1741522151846,-500.0,0.00033751,2]
[355739264,1741522151871,-250.0,0.00033751,2]
[355739265,1741522151893,-500.0,0.00033751,2]
[355739266,1741522151917,-500.0,0.00033751,2]
[355739267,1741522151938,-334.88163224,0.00033756,2]
[355739268,1741522151958,-500.0,0.000338,5]
[355739269,1741522151979,-500.0,0.000338,2]
[355739270,1741522152003,-502.45842487,0.000338,2]
[355739271,1741522152024,-880.21322609,0.000339,6]
[355739272,1741522152045,-169.080735,0.0003589,2]
[355739273,1741522152066,-178.34664835,0.000362,98]
[355739274,1741522152089,-288.52002812,0.00036656,2]
[355739275,1741522152111,-930.71833456,0.0003705,2]
[355739276,1741522152131,-1000.0,0.00039279,2]
[355739277,1741522152151,-1000.0,0.00039279,5]
[355739278,1741522152173,-276.11729763,0.00039844,31]
[355739279,1741522152193,-24238.77205704,0.00039845,2]
[355739280,1741522152270,-661.22794296,0.00039845,2]
[355739281,1741522152291,-500.0,0.000399,5]
[355739282,1741522152313,-500.0,0.000399,5]
[355739283,1741522152334,-178.08,0.0004,120]
[355739284,1741522152358,-1417.10693635,0.00040179,2]
[355739285,1741522152379,-930.71833456,0.00040448,28]
[355739286,1741522152399,-163.0,0.00041,14]
[355739287,1741522152420,-288.52002812,0.00041656,2]
[355739288,1741522152441,-439.438623,0.00041832,2]
[355739289,1741522184370,195.81366808,0.00033751,7]
[355739290,1741522204395,500.0,0.000338,5]
[355739291,1741522204545,1000.0,0.00039279,5]
[355739292,1741522210358,465.61299609,0.00035081,2]
[355739293,1741522218994,364.614034,0.00042208,2]
[355739336,1741522236476,-500.0,0.00043835,120]
[355739337,1741522236487,-500.0,0.00044383,120]
[355739338,1741522236497,-500.0,0.00044931,120]
[355739339,1741522236507,-242.91821484,0.00045459,3]
[355739340,1741522236517,-500.0,0.00045479,120]
[355739341,1741522236529,-144.36248717,0.00045978,2]
[355739356,1741522238437,-135.46481296,0.00045978,2]
[355739357,1741522238447,-580.65498736,0.00046,30]
[355739369,1741522240438,-424.0577,0.00046,30]
[355739407,1741522243359,-31.14059569,0.00046,30]
[355739408,1741522243375,-4533.02896528,0.00046,30]
[355739409,1741522243388,-870.04698367,0.00046,30]
[355739410,1741522243399,-1526.86965393,0.00046,30]
[355739609,1741522246048,-2531.34,0.00046,30]
[355739611,1741522246060,-2177.78371815,0.00046,30]
[355739616,1741522246100,-21.36685747,0.00046,30]
[355739618,1741522246112,-27135.28776085,0.00046,30]
[355739621,1741522246124,-28959.93858752,0.00046,30]
[355739623,1741522246134,-500.0,0.00046027,120]
[355739625,1741522246143,-788.60010097,0.00046262,2]
[355739627,1741522246152,-797.5807762,0.00046262,2]
[355739629,1741522246162,-184.88023838,0.00046365,2]
[355739631,1741522246171,-500.0,0.00046379,120]
[355739633,1741522246181,-556.72,0.00046455,30]
[355739635,1741522246190,-202.43,0.00046464,30]
[355739637,1741522246200,-193.28210834,0.00046464,31]
[355739639,1741522246209,-500.0,0.00046464,2]
[355739641,1741522246219,-500.0,0.00046464,2]
[355739643,1741522246228,-500.0,0.00046464,2]
[355739645,1741522246238,-500.0,0.00046464,2]
[355739647,1741522246247,-500.0,0.00046464,2]
[355739649,1741522246257,-500.0,0.00046464,2]
[355739651,1741522246266,-500.0,0.00046464,2]
[355739653,1741522246275,-297.62083044,0.00046464,2]
[355739655,1741522246284,-262.67,0.00046465,10]
[355739657,1741522246294,-218.89,0.00046465,10]
[355739659,1741522246303,-23400.00830133,0.00046465,4]
[355739661,1741522246315,-57470.37102187,0.00046465,4]
[355739663,1741522246324,-3283.8850914,0.00046465,4]
[355739665,1741522246334,-500.0,0.00046473,2]
[355739667,1741522246343,-5596.98565402,0.00046475,46]
[355739669,1741522246352,-798.59504833,0.00046475,46]
[355739671,1741522246362,-184.88023838,0.00046475,2]
[355739673,1741522246371,-222000.0,0.00046475,2]
[355739675,1741522246380,-16174.0758646,0.00046555,4]
[355739677,1741522246389,-656.77701828,0.00046555,4]
[355739679,1741522246398,-64696.3034585,0.00046565,4]
[355739681,1741522246407,-2627.10807312,0.00046565,4]
[355739683,1741522246416,-500.0,0.00046573,10]
[355739685,1741522246426,-500.0,0.00046573,10]
[355739687,1741522246435,-500.0,0.00046573,10]
[355739689,1741522246444,-500.0,0.00046573,10]
[355739691,1741522246454,-500.0,0.00046573,10]
[355739693,1741522246463,-500.0,0.00046573,10]
[355739695,1741522246472,-500.0,0.00046573,10]
[355739697,1741522246481,-500.0,0.00046573,10]
[355739699,1741522246491,-506.0253131,0.00046573,10]
[355739701,1741522246500,-500.0,0.00046573,10]
[355739703,1741522246509,-500.0,0.00046575,120]
[355739705,1741522246518,-500.0,0.00046575,120]
[355739707,1741522246528,-500.0,0.00046575,120]
[355739709,1741522246537,-511.1945832,0.00046575,120]
[355739711,1741522246546,-500.0,0.00046575,120]
[355739713,1741522246555,-500.0,0.00046575,120]
[355739715,1741522246564,-500.0,0.00046575,120]
[355739717,1741522246574,-500.0,0.00046575,120]
[355739719,1741522246583,-500.0,0.00046575,120]
[355739721,1741522246592,-500.0,0.00046575,120]
[355739723,1741522246601,-500.0,0.00046575,120]
[355739725,1741522246611,-500.0,0.00046575,120]
[355739727,1741522246620,-500.0,0.00046575,120]
[355739729,1741522246630,-500.0,0.00046575,120]
[355739731,1741522246640,-500.0,0.00046575,120]
[355739733,1741522246649,-500.0,0.00046575,120]
[355739735,1741522246659,-500.0,0.00046575,120]
[355739737,1741522246669,-500.0,0.00046575,120]
[355739739,1741522246679,-500.0,0.00046575,120]
[355739741,1741522246688,-500.0,0.00046575,120]
[355739743,1741522246697,-151.0,0.00046575,120]
[355739745,1741522246707,-500.0,0.00046575,120]
[355739747,1741522246717,-500.0,0.00046575,120]
[355739749,1741522246727,-500.0,0.00046575,120]
[355739751,1741522246737,-500.0,0.00046575,120]
[355739753,1741522246746,-500.0,0.00046575,120]
[355739755,1741522246755,-500.0,0.00046575,120]
[355739757,1741522246765,-293.43979876,0.00046575,120]
[355739759,1741522246777,-500.0,0.00046575,120]
[355739761,1741522246786,-500.0,0.00046575,120]
[355739763,1741522246795,-607.24,0.00046575,120]
[355739765,1741522246804,-500.0,0.00046575,120]
[355739767,1741522246814,-537.18,0.00046575,120]
[355739769,1741522246825,-500.0,0.00046575,120]
[355739771,1741522246835,-500.0,0.00046575,120]
[355739773,1741522246844,-500.0,0.00046575,120]
[355739775,1741522246853,-500.0,0.00046575,120]
[355739777,1741522246863,-500.0,0.00046575,120]
[355739779,1741522246873,-151.0,0.00046575,120]
[355739781,1741522246883,-562.11,0.00046575,120]
[355739782,1741522246892,-500.0,0.00046575,120]
[355739784,1741522246902,-500.0,0.00046575,120]
[355739786,1741522246912,-500.0,0.00046575,120]
[355739789,1741522246921,-500.0,0.00046575,120]
[355739790,1741522246931,-751.02,0.00046575,120]
[355739793,1741522246940,-500.0,0.00046575,120]
[355739795,1741522246952,-500.0,0.00046575,120]
[355739796,1741522246962,-502.22846609,0.00046575,120]
[355739799,1741522246972,-500.0,0.00046575,120]
[355739801,1741522246981,-1000.0,0.00046575,5]
[355739803,1741522246991,-514.21910545,0.00046575,120]
[355739805,1741522247001,-500.0,0.00046575,120]
[355739807,1741522247011,-500.0,0.00046575,120]
[355739809,1741522247020,-500.0,0.00046575,120]
[355739811,1741522247032,-500.0,0.00046575,120]
[355739812,1741522247042,-500.0,0.00046575,120]
[355739813,1741522247051,-500.0,0.00046575,120]
[355739814,1741522247060,-500.0,0.00046575,120]
[355739815,1741522247071,-653.34,0.00046575,120]
[355739816,1741522247080,-209.68770067,0.00046575,7]
[355739817,1741522247090,-548.49698914,0.00046575,120]
[355739818,1741522247100,-500.0,0.00046575,15]
[355739819,1741522247111,-500.0,0.00046575,120]
[355739820,1741522247121,-500.0,0.00046575,120]
[355739821,1741522247130,-500.0,0.00046575,120]
[355739822,1741522247140,-500.0,0.00046575,120]
[355739823,1741522247150,-754.55,0.00046575,120]
[355739824,1741522247160,-974.60103023,0.00046575,120]
[355739825,1741522247174,-342.752,0.00046575,120]
[355739849,1741523153088,-500.0,0.0002802,2]
[355739850,1741523153110,-500.0,0.00031,10]
[355739851,1741523153237,-169.674585,0.0003589,2]
[355739852,1741523153259,-150.75263292,0.000359,7]
[355739853,1741523234101,-803.15920783,0.000359,7]
[355739854,1741523234125,-177.17934261,0.00037219,104]
[355739855,1741523234147,-400.0,0.00037318,2]
[355739856,1741523234168,-4714.9484557,0.00037319,2]
[355739857,1741523234192,-500.0,0.00039368,15]
[355739858,1741523234218,-500.0,0.00039368,2]
[355739859,1741523234240,-316.99351658,0.00039368,15]
[355739860,1741523234262,-303.5280481,0.00039368,15]
[355739861,1741523234289,-500.0,0.00039368,2]
[355739862,1741523234315,-500.0,0.00039368,2]
[355739863,1741523234343,-277.70182103,0.00039368,2]
[355739864,1741523234369,-500.0,0.00039368,2]
[355739865,1741523234391,-1811.35373878,0.00039369,2]
[355739866,1741523244091,-800.36938322,0.0002802,2]
[355739867,1741523244112,-500.0,0.00031,10]
[355739868,1741523244133,-1494.48336982,0.00039369,2]
[355739869,1741523244154,-1145.88755391,0.00039878,2]
[355739870,1741523272229,186.74203423,0.00018,2]
[355739871,1741523318481,333.25446351,0.00024,120]
[355739872,1741523319371,5940.06806645,0.000145,2]
[355739873,1741523320142,1004.44783486,0.000185,2]
[355739874,1741523323264,6445.43538146,0.00026,30]
[355739875,1741523348102,-250.0,0.00026254,2]
[355739876,1741523348122,-2113.66062031,0.00027,2]
[355739877,1741523348144,-300.0,0.00027499,2]
[355739878,1741523348164,-39763.49044802,0.000275,2]
[355739879,1741523348185,-1369.56462961,0.0002799,2]
[355739880,1741523348206,-1173.29132603,0.0002799,2]
[355739881,1741523348229,-500.0,0.0002802,2]
[355739882,1741523348250,-500.0,0.0002802,2]
[355739883,1741523348271,-500.0,0.0002802,2]
[355739884,1741523348295,-659.13017037,0.0002802,2]
[355739885,1741523348316,-420.0,0.00029714,2]
[355739886,1741523348335,-899.75,0.0003,60]
[355739887,1741523348356,-922.11477944,0.000309,5]
[355739888,1741523348378,-500.0,0.00031,10]
[355739889,1741523348398,-500.0,0.00031,10]
[355739890,1741523348419,-164.3254962,0.00031,10]
[355739891,1741523348439,-500.0,0.00031,10]
[355739892,1741523348463,-500.0,0.00031,10]
[355739893,1741523348483,-500.0,0.00031,10]
[355739894,1741523348505,-500.0,0.00031,10]
[355739895,1741523348526,-500.0,0.00031,10]
[355739896,1741523348546,-587.0,0.00032108,2]
[355739897,1741523348636,316.0,0.00034694,2]
[355739898,1741523349083,-188.252,0.00036617,5]
[355739899,1741523349105,-174.008,0.00036617,5]
[355739900,1741523349125,-4142.82607142,0.00037,5]
[355739901,1741523349146,-150.0,0.00037269,2]
[355739902,1741523349172,-253.07798012,0.00039877,2]
[355739903,1741523349194,-139.25210729,0.00039878,2]
[355739904,1741523349218,-26436.65579024,0.0004,30]
[355739905,1741523353115,-27937.87745062,0.0004,30]
[355739906,1741523357080,-2572.5185293,0.00036846,2]
[355739907,1741523358109,-11534.42490557,0.0004,30]
[355739908,1741523361096,-29342.13611229,0.0004,30]
[355739909,1741523363076,-11263.16151667,0.0004,30]
[355739910,1741523363097,-500.0,0.0004,2]
[355739911,1741523363119,-225.858463,0.0004039,2]
[355739912,1741523363139,-159.0,0.00041,14]
[355739913,1741523363159,-1084.1929617,0.00041938,2]
[355739914,1741523363179,-2853.46750913,0.00042,120]
[355739915,1741523363199,-160.94,0.00042144,30]
[355739916,1741523363220,-760.05,0.00042144,10]
[355739917,1741523363240,-393.0,0.00042154,2]
[355739918,1741523363260,-12156.79500159,0.00042154,2]
[355739919,1741523372070,-12743.20499841,0.00042154,2]
[355739920,1741523372092,-225.858463,0.00042813,2]
[355739921,1741523372113,-2015.548471,0.00043,31]
[355739922,1741523372134,-506.78,0.00043,120]
[355739923,1741523372162,-159.0,0.00043151,90]
[355739973,1741523432129,-462.48530105,0.00045392,2]
[355739975,1741523432139,-738.67372104,0.00046,8]
[355739980,1741523432186,-27299.59623695,0.00046,8]
[355739998,1741523434951,583.125444,0.00038073,2]
[355740050,1741523438371,-322.03593824,0.00045999,31]
[355740052,1741523438380,-324.509306,0.00045999,120]
[355740054,1741523438390,-187.92754904,0.00046,8]
[355740208,1741523440133,-17717.61648868,0.00046,8]
[355740210,1741523440143,-1458.81208624,0.00046241,28]
[355740211,1741523440152,-177.17934261,0.00046241,120]
[355740213,1741523440162,-1570.57467932,0.00046342,19]
[355740215,1741523440171,-151.0,0.00046447,2]
[355740217,1741523440181,-600.0,0.00046447,2]
[355740219,1741523440192,-334.41,0.00046455,10]
[355740221,1741523440202,-292.38780315,0.00046462,120]
[355740224,1741523440218,-207.61219685,0.00046462,120]
[355740226,1741523440227,-462.5746663,0.00046464,14]
[355740259,1741523443365,-4.21921992,0.00046464,14]
[355740311,1741523446110,-568.88961151,0.00046464,14]
[355740437,1741523507206,168.125566,0.0003589,2]
[355740438,1741523511645,182.307017,0.00040186,2]
[355740439,1741523644564,1000.78870887,0.00028,10]
[355741534,1741524192323,-2000.0,0.00050517,120]
[355741535,1741524192350,-1491.7073471,0.00050517,120]
[355741536,1741524192376,-302.0,0.00050517,120]
[355741537,1741524192402,-1132.40076888,0.00050517,35]
[355741538,1741524192427,-10000.0,0.00050517,30]
[355741539,1741524192452,-20000.0,0.00050517,30]
[355741540,1741524192478,-10000.0,0.00050517,30]
[355741541,1741524192504,-10000.0,0.00050517,30]
[355741542,1741524192647,-11854.0,0.00050517,30]
[355741543,1741524192679,-1710.4343683,0.00050517,90]
[355741544,1741524192706,-764.0,0.00050517,120]
[355741545,1741524192731,-500.00068004,0.00050517,120]
[355741546,1741524192755,-1920.13,0.00050517,120]
[355741547,1741524192779,-541.985,0.00050517,120]
[355741548,1741524192803,-2295.889,0.00050517,120]
[355741549,1741524192827,-398.0,0.00050517,120]
[355741550,1741524192858,-398.0,0.00050517,120]
[355741551,1741524192882,-156.808,0.00050517,120]
[355741552,1741524200770,-895.061119,0.0003299,60]
[355741553,1741524200802,-177.67778004,0.000362,98]
[355741554,1741524200828,-281.75249237,0.0004,99]
[355741555,1741524200855,-151.0,0.00045,120]
[355741556,1741524200882,-500.0,0.00046341,120]
[355741557,1741524200909,-50000.0,0.0004635,120]
[355741558,1741524201068,-8627.12216571,0.00046375,46]
[355741559,1741524201092,-399.29752416,0.00046375,46]
[355741560,1741524201116,-151.0,0.00046375,120]
[355741561,1741524201141,-213.439707,0.00046375,120]
[355741562,1741524201165,-213.439707,0.00046375,120]
[355741563,1741524201190,-151.0,0.00046375,120]
[355741564,1741524201214,-162.390994,0.00046375,120]
[355741565,1741524201239,-162.390994,0.00046375,120]
[355741566,1741524201263,-203.88,0.00046464,30]
[355741567,1741524201287,-260.03433,0.00046465,120]
[355741568,1741524201311,-260.03433,0.00046465,120]
[355741569,1741524201333,-151.0,0.00046465,120]
[355741570,1741524201357,-151.0,0.00046465,120]
[355741571,1741524201381,-523.580882,0.00046465,120]
[355741572,1741524201407,-151.0,0.00046465,120]
[355741573,1741524201432,-523.580882,0.00046465,120]
[355741574,1741524201456,-215.075188,0.00046465,120]
[355741575,1741524201482,-599.0,0.00046465,120]
[355741576,1741524201505,-599.0,0.00046465,120]
[355741577,1741524201528,-599.0,0.00046465,120]
[355741578,1741524201552,-459.38039701,0.00046465,120]
[355741579,1741524201576,-191.10687225,0.000465,120]
[355741580,1741524201600,-3000.0,0.000465,90]
[355741581,1741524201625,-200.419197,0.00046565,120]
[355741582,1741524201648,-200.419197,0.00046565,120]
[355741583,1741524201674,-151.0,0.00046565,120]
[355741584,1741524201697,-411.740416,0.00046565,120]
[355741585,1741524201720,-411.740416,0.00046565,120]
[355741586,1741524201747,-260.03433,0.00046565,120]
[355741587,1741524201771,-260.03433,0.00046565,120]
[355741588,1741524201795,-151.0,0.00046565,120]
[355741589,1741524201820,-151.0,0.00046565,120]
[355741590,1741524201844,-523.580882,0.00046565,120]
[355741591,1741524201870,-254.410923,0.00046565,120]
[355741592,1741524201894,-523.580882,0.00046565,120]
[355741593,1741524201918,-151.0,0.00046565,120]
[355741594,1741524201941,-213.439707,0.00046565,120]
[355741595,1741524201966,-213.439707,0.00046565,120]
[355741596,1741524201991,-243.080467,0.00046565,120]
[355741597,1741524202014,-162.390994,0.00046565,120]
[355741598,1741524202038,-516.444178,0.00046565,30]
[355741599,1741524202065,-162.390994,0.00046565,120]
[355741600,1741524202090,-10882.25652235,0.00046572,120]
[355741601,1741524202114,-10882.25652235,0.00046572,120]
[355741602,1741524202137,-10882.25652235,0.00046572,120]
[355741603,1741524202161,-10882.25652235,0.00046572,120]
[355741604,1741524202186,-10882.25652235,0.00046572,120]
[355741605,1741524202210,-10882.25652235,0.00046572,120]
[355741606,1741524202236,-10882.25652235,0.00046572,120]
[355741607,1741524202260,-10882.25652235,0.00046572,120]
[355741608,1741524202284,-10882.25652235,0.00046572,120]
[355741609,1741524202308,-10882.25652235,0.00046572,120]
[355741610,1741524202332,-151.0,0.00046572,120]
[355741611,1741524202357,-243.839853,0.00046572,120]
[355741612,1741524202382,-243.839853,0.00046572,120]
[355741613,1741524202406,-151.0,0.00046572,120]
[355741614,1741524202430,-151.0,0.00046572,120]
[355741615,1741524202454,-151.0,0.00046572,120]
[355741616,1741524202478,-151.0,0.00046572,120]
[355741617,1741524202503,-200.419197,0.00046572,120]
[355741618,1741524202527,-200.419197,0.00046572,120]
[355741619,1741524202550,-200.419197,0.00046572,120]
[355741620,1741524202574,-200.419197,0.00046572,120]
[355741621,1741524202669,-151.0,0.00046572,120]
[355741622,1741524202717,-238.228071,0.00046572,120]
[355741623,1741524202747,-411.740416,0.00046572,120]
[355741624,1741524202772,-411.740416,0.00046572,120]
[355741625,1741524202798,-411.740416,0.00046572,120]
[355741626,1741524202824,-411.740416,0.00046572,120]
[355741627,1741524202850,-260.03433,0.00046572,120]
[355741628,1741524202877,-260.03433,0.00046572,120]
[355741629,1741524202902,-260.03433,0.00046572,120]
[355741630,1741524202928,-260.03433,0.00046572,120]
[355741631,1741524202955,-151.0,0.00046572,120]
[355741632,1741524202981,-151.0,0.00046572,120]
[355741633,1741524203007,-151.0,0.00046572,120]
[355741634,1741524203032,-151.0,0.00046572,120]
[355741635,1741524203058,-523.580882,0.00046572,120]
[355741636,1741524203084,-523.580882,0.00046572,120]
[355741637,1741524203108,-523.580882,0.00046572,120]
[355741638,1741524203133,-523.580882,0.00046572,120]
[355741639,1741524203158,-151.0,0.00046572,120]
[355741640,1741524203182,-151.0,0.00046572,120]
[355741641,1741524203208,-213.439707,0.00046572,120]
[355741642,1741524203233,-213.439707,0.00046572,120]
[355741643,1741524203258,-213.439707,0.00046572,120]
[355741644,1741524203283,-213.439707,0.00046572,120]
[355741645,1741524203308,-162.390994,0.00046572,120]
[355741646,1741524203333,-162.390994,0.00046572,120]
[355741647,1741524203358,-162.390994,0.00046572,120]
[355741648,1741524203384,-162.390994,0.00046572,120]
[355741649,1741524203410,-500.0,0.00046575,120]
[355741650,1741524203435,-500.0,0.00046575,120]
[355741651,1741524203460,-500.0,0.00046575,120]
[355741652,1741524203486,-500.0,0.00046575,120]
[355741653,1741524203512,-500.0,0.00046575,120]
[355741654,1741524203536,-524.7181891,0.00046575,120]
[355741655,1741524203563,-500.0,0.00046575,120]
[355741656,1741524203589,-500.0,0.00046575,120]
[355741657,1741524203614,-500.0,0.00046575,120]
[355741658,1741524203638,-500.0,0.00046575,120]
[355741659,1741524203665,-500.0,0.00046575,120]
[355741660,1741524203690,-151.0,0.00046575,120]
[355741661,1741524203716,-500.0,0.00046575,120]
[355741662,1741524203744,-500.0,0.00046575,120]
[355741663,1741524203769,-500.0,0.00046575,120]
[355741664,1741524203795,-151.0,0.00046575,120]
[355741665,1741524203820,-500.0,0.00046575,120]
[355741666,1741524203846,-500.0,0.00046575,120]
[355741667,1741524203871,-500.0,0.00046575,120]
[355741668,1741524203896,-418.90179761,0.00046575,120]
[355741669,1741524203922,-500.0,0.00046575,120]
[355741670,1741524203948,-500.0,0.00046575,120]
[355741671,1741524203974,-151.0,0.00046575,120]
[355741672,1741524203998,-151.0,0.00046575,120]
[355741673,1741524204024,-151.0,0.00046575,120]
[355741674,1741524204048,-151.0,0.00046575,120]
[355741675,1741524204073,-500.0,0.00046575,120]
[355741676,1741524204097,-500.06146085,0.00046575,120]
[355741677,1741524204123,-500.0,0.00046575,120]
[355741678,1741524204148,-513.164711,0.00046575,120]
[355741679,1741524204174,-500.0,0.00046575,120]
[355741680,1741524204200,-500.0,0.00046575,120]
[355741681,1741524204226,-243.839853,0.00046575,120]
[355741682,1741524204250,-243.839853,0.00046575,120]
[355741683,1741524204275,-243.839853,0.00046575,120]
[355741684,1741524204302,-243.839853,0.00046575,120]
[355741685,1741524204327,-373.96686982,0.00046575,120]
[355741686,1741524204352,-243.839853,0.00046575,120]
[355741687,1741524204376,-243.839853,0.00046575,120]
[355741688,1741524204403,-243.839853,0.00046575,120]
[355741689,1741524204429,-243.839853,0.00046575,120]
[355741690,1741524204555,-500.0,0.00046575,120]
[355741691,1741524204582,-750.22,0.00046575,120]
[355741692,1741524204609,-500.0,0.00046575,120]
[355741693,1741524204634,-500.0,0.00046575,120]
[355741694,1741524204662,-500.0,0.00046575,120]
[355741695,1741524204686,-500.0,0.00046575,120]
[355741696,1741524204710,-753.17,0.00046575,120]
[355741697,1741524204736,-151.0,0.00046575,120]
[355741698,1741524204760,-151.0,0.00046575,120]